fUSD/lending_fUSD_20250602
["ID","MTS","AMOUNT","RATE_DAILY","PERIOD"]
[363820796,1748886643347,-2138.7478,0.000244,2]
[363820798,1748886643357,-2138.7478,0.000244,2]
[363820800,1748886643366,-500.0,0.00024468,2]
[363820802,1748886643375,-400.0,0.0002447,2]
[363820804,1748886643384,-2630.97,0.000245,7]
[363820805,1748886643394,-997.73,0.000245,30]
[363820807,1748886643403,-209.2,0.000245,2]
[363820809,1748886643413,-209.2,0.000245,2]
[363820811,1748886643422,-209.2,0.000245,2]
[363820813,1748886643433,-500.0,0.00024569,2]
[363820815,1748886643446,-1000.0,0.00024585,2]
[363820818,1748886643457,-1000.0,0.00024585,2]
[363820819,1748886643472,-552.50071214,0.00024585,2]
[363820822,1748886643483,-1000.0,0.00024585,2]
[363820824,1748886643493,-1000.0,0.00024585,2]
[363820826,1748886643503,-1000.0,0.00024585,2]
[363820828,1748886643514,-501.2201206,0.00024585,2]
[363820830,1748886643523,-3000.0,0.0002459,7]
[363820831,1748886643533,-1000.0,0.000246,2]
[363820833,1748886643542,-6966.52925,0.000246,2]
[363820835,1748886643551,-600.0,0.00024608,2]
[363820837,1748886643560,-500.0,0.00024639,2]
[363820840,1748886643572,-2798.0,0.00024648,6]
[363820841,1748886643582,-166.66,0.00024658,2]
[363820843,1748886643591,-1000.0,0.00024658,2]
[363820845,1748886643600,-1100.0,0.00024683,2]
[363820847,1748886643609,-1100.0,0.00024711,2]
[363820849,1748886643618,-158.68085348,0.00024714,2]
[363820851,1748886643627,-161.85462089,0.00024714,2]
[363820853,1748886643637,-152.0,0.0002472,8]
[363820855,1748886643646,-170.43,0.00024756,2]
[363820857,1748886643655,-1000.0,0.00024794,2]
[363820860,1748886643665,-1000.0,0.000248,2]
[363820863,1748886643675,-151.0,0.000248,7]
[363820865,1748886643685,-160.57206,0.000248,7]
[363820867,1748886643694,-160.57206,0.000248,7]
[363820869,1748886643704,-151.0,0.000248,7]
[363820871,1748886643713,-268.015965,0.000248,7]
[363820873,1748886643724,-151.0,0.000248,7]
[363820875,1748886643733,-151.0,0.000248,7]
[363820877,1748886643743,-151.0,0.000248,7]
[363820879,1748886643752,-151.0,0.000248,7]
[363820881,1748886643761,-151.0,0.000248,7]
[363820883,1748886643770,-242.014213,0.000248,7]
[363820885,1748886643779,-242.014213,0.000248,7]
[363820887,1748886643788,-151.0,0.000248,7]
[363820889,1748886643798,-151.550716,0.000248,7]
[363820891,1748886643807,-255.170628,0.000248,7]
[363820893,1748886643816,-917.485102,0.000248,7]
[363820895,1748886643825,-917.485102,0.000248,7]
[363820897,1748886643834,-271.804503,0.000248,7]
[363820899,1748886643843,-151.0,0.000248,7]
[363820901,1748886643854,-332352.714438,0.000248,3]
[363820903,1748886643864,-500.0,0.00024814,2]
[363820904,1748886643874,-500.0,0.0002483,2]
[363820906,1748886643883,-501.56544652,0.00024873,2]
[363820908,1748886643892,-204.0,0.00024886,5]
[363820910,1748886643902,-110784.238146,0.0002489,3]
[363820912,1748886643912,-151.0,0.000249,7]
[363820914,1748886643921,-151.0,0.000249,7]
[363820916,1748886643930,-151.0,0.000249,7]
[363820918,1748886643940,-151.0,0.000249,7]
[363820920,1748886643950,-151.0,0.000249,7]
[363820922,1748886643959,-151.0,0.000249,7]
[363820924,1748886643969,-151.0,0.000249,7]
[363820926,1748886643979,-151.0,0.000249,7]
[363820928,1748886643989,-151.0,0.000249,7]
[363820930,1748886643998,-242.014213,0.000249,7]
[363820932,1748886644007,-242.014213,0.000249,7]
[363820934,1748886644016,-917.485102,0.000249,7]
[363820936,1748886644026,-917.485102,0.000249,7]
[363820938,1748886644035,-151.0,0.000249,7]
[363820940,1748886644044,-242101.023659,0.000249,3]
[363820942,1748886644054,-36928.079382,0.00024927,3]
[363820944,1748886644063,-216.0,0.0002493,30]
[363820946,1748886644074,-247.0,0.00024932,7]
[363820948,1748886644084,-153.0,0.00024932,2]
[363820950,1748886644094,-174.61919141,0.00024967,2]
[363820952,1748886644104,-239.84119403,0.00024967,2]
[363820954,1748886644113,-1199.20597015,0.00024969,2]
[363820956,1748886644122,-36928.079382,0.0002497,3]
[363820958,1748886644131,-500.0,0.00024973,2]
[363820960,1748886644141,-500.0,0.00024973,2]
[363820962,1748886644150,-159.65520683,0.00024973,2]
[363820964,1748886644159,-703.53,0.00024976,2]
[363820966,1748886644169,-36928.079382,0.0002498,3]
[363820968,1748886644179,-73856.1587639,0.0002499,3]
[363820970,1748886644188,-2073.66629525,0.00025,2]
[363820972,1748886644198,-160.0,0.00025,3]
[363820974,1748886644207,-1000.0,0.00025,2]
[363820976,1748886644215,-360.35205693,0.00025,3]
[363820978,1748886644225,-500.0,0.00025,2]
[363820980,1748886644234,-500.0,0.00025,2]
[363820982,1748886644244,-1895.67,0.00025,2]
[363820984,1748886644254,-3099.64650891,0.00025,2]
[363820986,1748886644263,-3940.0,0.00025,6]
[363820988,1748886644273,-150.0,0.00025,2]
[363820990,1748886644282,-2133.51533549,0.00025,30]
[363820992,1748886644292,-201.17960314,0.00025,2]
[363820994,1748886644301,-1730.08299051,0.00025,2]
[363820996,1748886644310,-257.99784145,0.00025,2]
[363820998,1748886644320,-17478.88284914,0.00025,2]
[363821000,1748886644330,-6058.96745349,0.00025,2]
[363821002,1748886644340,-200.0,0.00025,2]
[363821004,1748886644350,-2950.5618306,0.00025,2]
[363821006,1748886644359,-4022.31791955,0.00025,2]
[363821008,1748886644368,-1769.70880923,0.00025,2]
[363821015,1748886644424,-1031.74871308,0.00025,2]
[363821017,1748886644436,-162.14763656,0.00025,2]
[363821019,1748886644446,-10361.51734149,0.00025,2]
[363821021,1748886644456,-497.39584262,0.00025,2]
[363821023,1748886644465,-283.4,0.00025,2]
[363821025,1748886644475,-2446.15357424,0.00025,30]
[363821027,1748886644484,-400.0,0.00025,2]
[363821028,1748886644494,-400.0,0.00025,2]
[363821030,1748886644503,-437.8,0.00025,2]
[363821032,1748886644514,-1262.39935581,0.00025,30]
[363821034,1748886644524,-761.78817865,0.00025,30]
[363821036,1748886644534,-375.71624964,0.00025,30]
[363821038,1748886644544,-837.92463401,0.00025,30]
[363821040,1748886644553,-500.0,0.00025,5]
[363821042,1748886644564,-1800.0,0.00025,26]
[363821044,1748886644573,-2000.0,0.00025,7]
[363821046,1748886644582,-2000.0,0.00025,2]
[363821048,1748886644591,-2000.0,0.00025,2]
[363821050,1748886644600,-1602.0,0.00025,2]
[363821052,1748886644609,-50577.83489451,0.00025,2]
[363821054,1748886644618,-158.0,0.00025,7]
[363821056,1748886644627,-247.0,0.00025,7]
[363821058,1748886644636,-1168.0684895,0.00025012,2]
[363821060,1748886644645,-500.0,0.00025056,2]
[363821062,1748886644655,-152.0,0.00025096,9]
[363821064,1748886644664,-88908.76458903,0.00025099,7]
[363821066,1748886644677,-42935.14396031,0.00025099,7]
[363821069,1748886644696,-614.06782139,0.00025099,7]
[363821071,1748886644708,-6006.16816891,0.00025099,7]
[363821073,1748886644718,-151.0,0.00025099,7]
[363821075,1748886644727,-25.88840709,0.00025099,7]
[363821078,1748886644737,-125.11159291,0.00025099,7]
[363821079,1748886644746,-151.0,0.00025099,7]
[363821081,1748886644755,-263.265073,0.00025099,7]
[363821083,1748886644764,-263.265073,0.00025099,7]
[363821085,1748886644773,-151.0,0.00025099,7]
[363821087,1748886644783,-25.88532509,0.00025099,7]
[363821090,1748886644795,-125.11467491,0.00025099,7]
[363821092,1748886644804,-151.0,0.00025099,7]
[363821094,1748886644813,-283.15295,0.00025099,7]
[363821096,1748886644823,-283.15295,0.00025099,7]
[363821098,1748886644832,-151.0,0.00025099,7]
[363821100,1748886644841,-151.0,0.00025099,7]
[363821102,1748886644851,-483.955266,0.00025099,7]
[363821104,1748886644860,-483.955266,0.00025099,7]
[363821106,1748886644869,-151.0,0.00025099,7]
[363821108,1748886644878,-151.0,0.00025099,7]
[363821110,1748886644887,-151.0,0.00025099,7]
[363821111,1748886644898,-151.0,0.00025099,7]
[363821113,1748886644908,-151.0,0.00025099,7]
[363821115,1748886644918,-151.0,0.00025099,7]
[363821118,1748886644928,-151.0,0.00025099,7]
[363821119,1748886644937,-151.0,0.00025099,7]
[363821121,1748886644946,-3276.35208495,0.000251,2]
[363821123,1748886644956,-151.0,0.000251,7]
[363821125,1748886644965,-160.57206,0.000251,7]
[363821127,1748886644976,-160.57206,0.000251,7]
[363821129,1748886644986,-86.85659814,0.000251,7]
[363821132,1748886645001,-64.14340186,0.000251,7]
[363821134,1748886645011,-151.0,0.000251,7]
[363821136,1748886645020,-225.950347,0.000251,7]
[363821138,1748886645029,-151.0,0.000251,7]
[363821140,1748886645038,-151.0,0.000251,7]
[363821142,1748886645047,-151.0,0.000251,7]
[363821144,1748886645056,-242.014213,0.000251,7]
[363821146,1748886645065,-242.014213,0.000251,7]
[363821148,1748886645074,-151.0,0.000251,7]
[363821150,1748886645082,-267.22926738,0.000251,7]
[363821152,1748886645094,-607.46602351,0.000251,7]
[363821154,1748886645105,-42.78981111,0.000251,7]
[363821156,1748886645114,-917.485102,0.000251,7]
[363821158,1748886645123,-151.0,0.000251,7]
[363821160,1748886645133,-154.49308689,0.00025133,2]
[363821163,1748886645152,-545.49179596,0.00025133,2]
[363821165,1748886645162,-1500.0,0.00025133,2]
[363821167,1748886645171,-514.33427356,0.00025133,2]
[363821169,1748886645181,-1500.0,0.00025133,2]
[363821171,1748886645190,-1500.0,0.00025133,2]
[363821173,1748886645199,-1000.0,0.000252,2]
[363821175,1748886645208,-6966.52925,0.0002523,2]
[363821177,1748886645218,-1022.93291629,0.00025241,2]
[363821179,1748886645227,-280.0,0.000253,10]
[363821181,1748886645236,-494.0,0.00025373,7]
[363821183,1748886645245,-494.0,0.00025373,7]
[363821185,1748886645255,-1000.0,0.000254,2]
[363821187,1748886645264,-232.95633676,0.00025442,2]
[363821189,1748886645273,-152.0,0.00025471,10]
[363821190,1748886645283,-565.02,0.00025479,2]
[363821192,1748886645292,-277.27675755,0.00025479,2]
[363821194,1748886645301,-500.0,0.00025521,2]
[363821196,1748886645311,-500.0,0.00025521,2]
[363821198,1748886645321,-1000.0,0.00025527,2]
[363821200,1748886645330,-500.0,0.00025534,2]
[363821202,1748886645339,-3292.0,0.00025576,2]
[363821204,1748886645351,-500.0,0.00025594,2]
[363821206,1748886645360,-1000.0,0.000256,2]
[363821208,1748886645370,-500.0,0.00025635,2]
[363821210,1748886645380,-3231.98991148,0.00025672,2]
[363821212,1748886645390,-500.0,0.00025676,2]
[363821214,1748886645400,-2000.0,0.00025681,2]
[363821216,1748886645410,-2000.0,0.00025681,2]
[363821218,1748886645420,-2000.0,0.00025681,2]
[363821220,1748886645430,-500.0,0.00025738,2]
[363821222,1748886645443,-500.0,0.00025789,2]
[363821224,1748886645453,-1000.0,0.000258,2]
[363821226,1748886645462,-152.0,0.00025847,11]
[363821228,1748886645471,-6966.52924,0.0002585,2]
[363821230,1748886645481,-500.0,0.00025886,2]
[363821232,1748886645492,-247.0,0.0002589,7]
[363821234,1748886645501,-581.67474312,0.0002599,2]
[363821236,1748886645511,-1800.0,0.00026,27]
[363821238,1748886645521,-1000.0,0.00026,2]
[363821240,1748886645530,-150.0,0.00026,2]
[363821241,1748886645540,-4382.94779427,0.00026,2]
[363821242,1748886645549,-923.12531965,0.00026,2]
[363821243,1748886645558,-309.26981043,0.00026,2]
[363821244,1748886645567,-3533.1413775,0.00026,30]
[363821247,1748886645667,-151.0,0.00025099,7]
[363821249,1748886645676,-713.3221402,0.00026,30]
[363821251,1748886645687,-1651.7364823,0.00026,30]
[363821253,1748886645697,-280.26316795,0.00026,7]
[363821320,1748886646246,-150.0,0.00025,2]
[363821322,1748886646256,-10641.16783896,0.00026,7]
[363821327,1748886646300,-25051.83636628,0.00026,7]
[363821329,1748886646309,-500.0,0.00026025,2]
[363821331,1748886646319,-500.0,0.00026097,2]
[363821333,1748886646328,-151.0,0.000261,7]
[363821335,1748886646337,-151.0,0.000261,7]
[363821337,1748886646347,-228.2283,0.000261,7]
[363821339,1748886646356,-158.063974,0.000261,7]
[363821341,1748886646366,-151.0,0.000261,7]
[363821343,1748886646375,-2244.06,0.000261,2]
[363821345,1748886646386,-1022.93291629,0.00026101,2]
[363821347,1748886646395,-1000.0,0.000262,2]
[363821349,1748886646404,-152.0,0.00026222,12]
[363821351,1748886646414,-500.0,0.00026229,2]
[363821353,1748886646423,-2516.88754574,0.00026229,2]
[363821354,1748886646432,-2500.0,0.00026229,2]
[363821357,1748886646447,-2500.0,0.00026229,2]
[363821358,1748886646456,-644.42583627,0.00026255,2]
[363821360,1748886646466,-1100.0,0.00026314,2]
[363821362,1748886646475,-181.08010149,0.00026336,2]
[363821364,1748886646486,-248.71531821,0.00026336,2]
[363821366,1748886646496,-494.0,0.00026388,7]
[363821368,1748886646505,-1000.0,0.000264,2]
[363821370,1748886646515,-11573.86179386,0.000264,2]
[363821373,1748886646531,-6633.36594784,0.000264,2]
[363821377,1748886646564,-8410.87757584,0.000264,2]
[363821379,1748886646573,-62704.6597073,0.000264,2]
[363821381,1748886646582,-600.0,0.00026414,2]
[363821383,1748886646592,-150.30053565,0.0002645,5]
[363821385,1748886646601,-572.0,0.00026466,2]
[363821387,1748886646610,-6966.52925,0.0002648,2]
[363821389,1748886646619,-151.0,0.0002649,7]
[363821391,1748886646630,-212.113762,0.0002649,7]
[363821393,1748886646639,-212.113762,0.0002649,7]
[363821394,1748886646648,-151.0,0.0002649,7]
[363821396,1748886646658,-943.0,0.00026495,2]
[363821398,1748886646668,-801.0,0.00026495,2]
[363821400,1748886646679,-1467.0,0.00026495,2]
[363821402,1748886646688,-596.714,0.00026495,2]
[363821404,1748886646697,-925.0,0.00026495,2]
[363821406,1748886646707,-557.0,0.00026495,2]
[363821408,1748886646716,-155.0,0.00026495,2]
[363821410,1748886646726,-4075.0,0.00026495,2]
[363821412,1748886646735,-505.35,0.00026498,2]
[363821414,1748886646745,-46378.86349359,0.000265,2]
[363821416,1748886646754,-116769.42025204,0.000265,7]
[363821450,1748886653063,859.1,0.00041095,120]
[363821454,1748886673773,460.0,0.00041095,120]
[363821457,1748886684607,460.0,0.00041095,120]
[363821459,1748886696422,460.0,0.00041095,120]
[363821466,1748886746261,1204.21,0.00041095,120]
[363821467,1748886747789,1063.37,0.00041095,120]
[363821469,1748886754578,2516.07,0.00041095,120]
[363821470,1748886757899,460.0,0.00041095,120]
[363821472,1748886763473,304.50928822,0.00041095,120]
[363821475,1748886773830,460.0,0.00041095,120]
[363821476,1748886777350,427.15131234,0.00041095,120]
[363821478,1748886784548,460.0,0.00041095,120]
[363821479,1748886785900,791.33,0.00041095,120]
[363821480,1748886787944,529.01,0.00041095,120]
[363821481,1748886788772,399.48771926,0.00041095,120]
[363821483,1748886790119,851.0,0.00020692,120]
[363821485,1748886799852,460.0,0.00041095,120]
[363821486,1748886800252,460.0,0.00041095,120]
[363821487,1748886805226,460.0,0.00041095,120]
[363821491,1748886825175,460.0,0.00041095,120]
[363821493,1748886829027,460.0,0.00041095,120]
[363821495,1748886840425,1574.17,0.00041095,120]
[363821496,1748886841204,638.34,0.00041095,120]
[363821498,1748886849567,460.0,0.00041095,120]
[363821499,1748886852979,460.0,0.00041095,120]
[363821501,1748886861898,582.46,0.00041095,120]
[363821503,1748886869670,460.0,0.00041095,120]
[363821505,1748886878821,460.0,0.00041095,120]
[363821507,1748886882172,460.0,0.00041095,120]
[363821508,1748886887817,460.0,0.00041095,120]
[363821510,1748886892316,823.31,0.00041095,120]
[363821512,1748886900818,810.09,0.00041095,120]
[363821513,1748886904240,350.0,0.00041055,120]
[363821515,1748886909808,460.0,0.00041095,120]
[363821520,1748886944922,460.0,0.00041095,120]
[363821526,1748886972607,692.44,0.00018435,2]
[363821527,1748886973133,1019.07,0.00041095,120]
[363821529,1748886982027,2411.23,0.00041095,120]
[363821533,1748887005549,528.56,0.00041095,120]
[363821535,1748887011817,758.36,0.00041095,120]
[363821537,1748887019992,1154.03,0.00041095,120]
[363821538,1748887026780,460.0,0.00041095,120]
[363821539,1748887026965,179.35569268,0.00018435,2]
[363821540,1748887027002,460.0,0.00041095,120]
[363821541,1748887027117,151.0,0.00018435,2]
[363821542,1748887031472,460.0,0.00041095,120]
[363821544,1748887036930,460.0,0.00041095,120]
[363821545,1748887038492,460.0,0.00041095,120]
[363821546,1748887055184,460.0,0.00041095,120]
[363821547,1748887056371,460.0,0.00041095,120]
[363821548,1748887058905,460.0,0.00041095,120]
[363821549,1748887060483,460.0,0.00041095,120]
[363821550,1748887071801,611.74,0.00041095,120]
[363821551,1748887077403,460.0,0.00041095,120]
[363821552,1748887080579,460.0,0.00041095,120]
[363821553,1748887084106,460.0,0.00041095,120]
[363821554,1748887084616,460.0,0.00041095,120]
[363821555,1748887089898,558.19,0.00041095,120]
[363821556,1748887105101,1900.12958891,0.00039,120]
[363821557,1748887112095,460.0,0.00041095,120]
[363821558,1748887115163,460.0,0.00041095,120]
[363821559,1748887115606,300.0,0.00041095,120]
[363821560,1748887116186,1508.58,0.00041095,120]
[363821561,1748887116670,1900.12958891,0.00039,120]
[363821562,1748887120953,460.0,0.00041095,120]
[363821563,1748887132078,1856.87041109,0.00039,120]
[363821564,1748887134229,776.34,0.00041095,120]
[363821565,1748887149871,460.0,0.00041095,120]
[363821566,1748887172942,789.0,0.00041095,120]
[363821567,1748887175166,460.0,0.00041095,120]
[363821568,1748887217267,376.60693934,0.00041055,120]
[363821569,1748887231126,2310.77,0.00041095,120]
[363821570,1748887240516,976.6,0.00041095,120]
[363821571,1748887254940,1105.95,0.00041095,120]
[363821572,1748887272943,460.0,0.00041095,120]
[363821573,1748887283546,726.76,0.00041095,120]
[363821574,1748887295198,460.0,0.00041095,120]
[363821575,1748887298356,460.0,0.00041095,120]
[363821576,1748887302295,460.0,0.00041095,120]
[363821577,1748887307848,460.0,0.00041095,120]
[363821578,1748887311147,3079.50220489,0.00041,120]
[363821579,1748887318646,460.0,0.00041095,120]
[363821582,1748887325445,460.0,0.00041095,120]
[363821583,1748887326525,460.0,0.00041095,120]
[363821584,1748887329916,460.0,0.00041095,120]
[363821585,1748887334947,500.0,0.00041096,120]
[363821586,1748887343074,586.25,0.00041095,120]
[363821587,1748887351469,460.0,0.00041095,120]
[363821588,1748887354392,460.0,0.00041095,120]
[363821589,1748887358324,534.93,0.00041095,120]
[363821590,1748887358659,1445.72,0.00041095,120]
[363821591,1748887378450,1000.0,0.00041096,120]
[363821592,1748887379815,460.0,0.00041095,120]
[363821593,1748887382115,460.0,0.00041095,120]
[363821594,1748887386948,1000.0,0.00041096,120]
[363821595,1748887387600,460.0,0.00041095,120]
[363821596,1748887388267,460.0,0.00041095,120]
[363821597,1748887395619,1000.0,0.00041096,120]
[363821598,1748887400510,743.99,0.00041095,120]
[363821599,1748887402314,1000.0,0.00041096,120]
[363821600,1748887410067,756.13,0.00041095,120]
[363821601,1748887411137,1000.0,0.00041096,120]
[363821602,1748887429255,1000.0,0.00041096,120]
[363821603,1748887430688,603.8,0.00041095,120]
[363821604,1748887436749,460.0,0.00041095,120]
[363821605,1748887447886,1000.0,0.00041096,120]
[363821606,1748887456900,1000.0,0.00041096,120]
[363821607,1748887466256,1000.0,0.00041096,120]
[363821608,1748887470119,2214.48,0.00041095,120]
[363821609,1748887498580,935.91,0.00041095,120]
[363821610,1748887499425,696.48,0.00041095,120]
[363821611,1748887510013,1059.87,0.00041095,120]
[363821612,1748887513602,460.0,0.00041095,120]
[363821613,1748887516411,460.0,0.00041095,120]
[363821614,1748887523740,460.0,0.00041095,120]
[363821615,1748887531606,460.0,0.00041095,120]
[363821616,1748887546149,460.0,0.00041095,120]
[363821617,1748887552148,460.0,0.00041095,120]
[363821618,1748887560789,460.0,0.00041095,120]
[363821620,1748887568154,460.0,0.00041095,120]
[363821621,1748887575528,460.0,0.00041095,120]
[363821622,1748887578513,512.64,0.00041095,120]
[363821623,1748887582160,460.0,0.00041095,120]
[363821624,1748887594094,561.82,0.00041095,120]
[363821625,1748887599386,460.0,0.00041095,120]
[363821626,1748887602030,460.0,0.00041095,120]
[363821627,1748887603950,1385.48,0.00041095,120]
[363821628,1748887604743,460.0,0.00041095,120]
[363821629,1748887607515,460.0,0.00041095,120]
[363821630,1748887632559,460.0,0.00041095,120]
[363821631,1748887634685,460.0,0.00041095,120]
[363821632,1748887636944,460.0,0.00041095,120]
[363821633,1748887640096,460.0,0.00041095,120]
[363821635,1748887651780,460.0,0.00041095,120]
[363821636,1748887652553,712.99,0.00041095,120]
[363821637,1748887658610,508.63271287,0.00041095,120]
[363821638,1748887658871,567.09,0.00041095,120]
[363821639,1748887704210,2122.21,0.00041095,120]
[363821640,1748887728109,1015.7,0.00041095,120]
[363821641,1748887730272,300.0,0.00041095,120]
[363821642,1748887732703,522.36,0.00041095,120]
[363821643,1748887733043,896.92,0.00041095,120]
[363821646,1748887741290,460.0,0.00041095,120]
[363821647,1748887746927,297.52875869,0.00041095,120]
[363821648,1748887759564,460.0,0.00041095,120]
[363821649,1748887769995,460.0,0.00041095,120]
[363821654,1748887775148,460.0,0.00041095,120]
[363821656,1748887787012,460.0,0.00041095,120]
[363821657,1748887793423,390.49469447,0.00041095,120]
[363821658,1748887798355,460.0,0.00041095,120]
[363821659,1748887806933,491.28,0.00041095,120]
[363821660,1748887821548,460.0,0.00041095,120]
[363821661,1748887827779,1327.75,0.00041095,120]
[363821674,1748887831449,-1000.0,0.00020353,2]
[363821675,1748887831462,-425.79,0.00020353,2]
[363821676,1748887831474,-250.0,0.00020358,2]
[363821677,1748887831484,-400.0,0.00020363,2]
[363821678,1748887831494,-400.0,0.00020374,2]
[363821679,1748887831505,-200.0,0.000204,2]
[363821680,1748887831515,-250.0,0.00020404,2]
[363821681,1748887831525,-169.17407791,0.00020691,2]
[363821682,1748887831537,-1030.82592209,0.00020691,2]
[363821685,1748887831782,-151.0,0.00020692,2]
[363821687,1748887831792,-1115.157653,0.00020692,2]
[363821689,1748887831801,-285.49177192,0.00020692,2]
[363821691,1748887831811,-151.0,0.00020692,2]
[363821693,1748887831820,-719.04747942,0.00020692,2]
[363821695,1748887831831,-207.4,0.00020692,2]
[363821696,1748887831843,-692.44,0.00020699,2]
[363821697,1748887831852,-300.0,0.00020703,2]
[363821698,1748887831863,-112.38117357,0.00020705,2]
[363821699,1748887831875,-37.61882643,0.00020705,2]
[363821700,1748887831886,-823.81404207,0.00020705,2]
[363821701,1748887831898,-119.18595793,0.00020705,2]
[363821702,1748887831909,-131.57104207,0.00020705,2]
[363821902,1748887834049,538.42,0.00041095,120]
[363822234,1748887837435,-669.42895793,0.00020705,2]
[363822236,1748887837444,-658.77104207,0.00020705,2]
[363822245,1748887837541,-808.22895793,0.00020705,2]
[363822247,1748887837552,-557.0,0.00020705,2]
[363822248,1748887837561,-922.0,0.00020705,2]
[363822250,1748887837571,-155.0,0.00020705,2]
[363822252,1748887837580,-265.307,0.00020705,2]
[363822254,1748887837589,-4075.0,0.00020705,2]
[363822256,1748887837599,-188.9,0.00020901,2]
[363822257,1748887837608,-302.52,0.00021353,2]
[363822259,1748887837618,-302.75,0.00021353,2]
[363822261,1748887837627,-302.75,0.00021353,2]
[363822263,1748887837636,-303.23,0.00021353,2]
[363822265,1748887837645,-300.17,0.00021353,2]
[363822267,1748887837655,-301.61,0.00021353,2]
[363822268,1748887837664,-300.84,0.00021353,2]
[363822270,1748887837674,-305.59,0.00021353,2]
[363822272,1748887837683,-300.7,0.00021353,2]
[363822274,1748887837692,-303.01,0.00021353,2]
[363822276,1748887837701,-302.24,0.00021353,2]
[363822277,1748887837709,-304.38,0.00021353,2]
[363822279,1748887837718,-303.07,0.00021353,2]
[363822281,1748887837730,-304.06,0.00021353,2]
[363822283,1748887837739,-300.04,0.00021353,2]
[363822284,1748887837750,-303.46,0.00021353,2]
[363822286,1748887837759,-301.86,0.00021353,2]
[363822288,1748887837769,-302.37,0.00021353,2]
[363822290,1748887837778,-301.8,0.00021353,2]
[363822292,1748887837787,-301.74,0.00021353,2]
[363822293,1748887837796,-305.2,0.00021353,2]
[363822295,1748887837805,-300.72,0.00021353,2]
[363822297,1748887837814,-302.93,0.00021353,2]
[363822299,1748887837823,-303.91,0.00021353,2]
[363822300,1748887837832,-302.98,0.00021353,2]
[363822302,1748887837842,-302.13,0.00021353,2]
[363822304,1748887837854,-301.66,0.00021353,2]
[363822306,1748887837863,-302.6,0.00021353,2]
[363822308,1748887837872,-302.94,0.00021353,2]
[363822310,1748887837882,-300.15,0.00021353,2]
[363822311,1748887837892,-301.45,0.00021353,2]
[363822312,1748887837902,-304.94,0.00021353,2]
[363822313,1748887837911,-304.92,0.00021353,2]
[363822314,1748887837922,-304.72,0.00021353,2]
[363822315,1748887837932,-303.48,0.00021353,2]
[363822316,1748887837941,-301.25,0.00021353,2]
[363822317,1748887837950,-302.54,0.00021353,2]
[363822318,1748887837959,-301.39,0.00021353,2]
[363822319,1748887837968,-300.04,0.00021353,2]
[363822320,1748887837979,-305.88,0.00021353,2]